fUST/lending_fUST_20251010
["ID","MTS","AMOUNT","RATE_DAILY","PERIOD"]
[390576953,1760091047220,-500.0,0.00016986,2]
[390576955,1760091047231,-500.0,0.00016986,2]
[390576957,1760091047242,-500.0,0.00016986,2]
[390576959,1760091047253,-500.0,0.00016986,2]
[390576961,1760091047262,-487.17684428,0.00016986,2]
[390576963,1760091047271,-500.0,0.00016986,2]
[390576965,1760091047281,-500.0,0.00016986,2]
[390576967,1760091047290,-241.15,0.00016986,2]
[390576969,1760091047299,-500.0,0.00016986,2]
[390576971,1760091047307,-506.32865722,0.00016986,2]
[390576973,1760091047317,-500.0,0.00016986,2]
[390576975,1760091047327,-313.55483031,0.00016986,2]
[390576977,1760091047336,-151.0,0.00016986,2]
[390576979,1760091047345,-279.947969,0.00016986,2]
[390576981,1760091047354,-905.33,0.00016986,2]
[390576983,1760091047363,-805.24,0.00016986,2]
[390576985,1760091047373,-500.0,0.00016986,2]
[390576987,1760091047383,-500.0,0.00016986,2]
[390576989,1760091047392,-500.0,0.00016986,2]
[390576991,1760091047401,-500.0,0.00016986,2]
[390576992,1760091047411,-500.0,0.00016986,2]
[390576994,1760091047420,-519.03,0.00016986,2]
[390576996,1760091047429,-500.0,0.00016986,2]
[390576998,1760091047438,-236.38836431,0.00016986,2]
[390577000,1760091047448,-500.0,0.00016986,2]
[390577002,1760091047457,-500.0,0.00016986,2]
[390577004,1760091047466,-1328.9,0.00016986,2]
[390577006,1760091047477,-500.0,0.00016986,2]
[390577008,1760091047486,-151.0,0.00016986,2]
[390577010,1760091047494,-151.0,0.00016986,2]
[390577012,1760091047503,-151.0,0.00016986,2]
[390577014,1760091047512,-151.0,0.00016986,2]
[390577016,1760091047521,-500.0,0.00016986,2]
[390577018,1760091047530,-500.0,0.00016986,2]
[390577020,1760091047539,-937.71,0.00016986,2]
[390577022,1760091047548,-500.0,0.00016986,2]
[390577024,1760091047558,-500.0,0.00016986,2]
[390577025,1760091047568,-500.0,0.00016986,2]
[390577028,1760091047578,-500.0,0.00016986,2]
[390577029,1760091047587,-500.0,0.00016986,2]
[390577031,1760091047596,-151.0,0.00016986,2]
[390577033,1760091047605,-151.0,0.00016986,2]
[390577035,1760091047615,-151.0,0.00016986,2]
[390577037,1760091047623,-151.0,0.00016986,2]
[390577039,1760091047632,-500.0,0.00016986,2]
[390577041,1760091047641,-504.46235689,0.00016986,2]
[390577043,1760091047650,-151.0,0.00016986,2]
[390577045,1760091047659,-151.0,0.00016986,2]
[390577047,1760091047668,-500.0,0.00016986,2]
[390577049,1760091047676,-1749.37,0.00016986,2]
[390577051,1760091047685,-500.0,0.00016986,2]
[390577053,1760091047694,-500.0,0.00016986,2]
[390577055,1760091047704,-500.0,0.00016986,2]
[390577057,1760091047714,-500.0,0.00016986,2]
[390577059,1760091047723,-479.25698207,0.00016986,2]
[390577061,1760091047732,-887.19,0.00016986,2]
[390577063,1760091047740,-500.0,0.00016986,2]
[390577065,1760091047749,-500.0,0.00016986,2]
[390577067,1760091047758,-497.0,0.00016986,2]
[390577069,1760091047767,-179.36266348,0.00016986,2]
[390577070,1760091047776,-1245.37,0.00016986,2]
[390577072,1760091047785,-500.0,0.00016986,2]
[390577074,1760091047794,-3050.89,0.00016986,2]
[390577076,1760091047804,-424.154854,0.00016986,2]
[390577078,1760091047814,-1194.96,0.00016986,2]
[390577080,1760091047824,-510.83,0.00016986,2]
[390577082,1760091047833,-500.0,0.00016986,2]
[390577084,1760091047842,-5982.98,0.00016986,2]
[390577086,1760091047851,-681.35,0.00016986,2]
[390577088,1760091047860,-500.0,0.00016986,2]
[390577090,1760091047869,-500.0,0.00016986,2]
[390577092,1760091047878,-500.0,0.00016986,2]
[390577094,1760091047887,-500.0,0.00016986,2]
[390577096,1760091047896,-379.8090767,0.00016986,2]
[390577098,1760091047904,-151.0,0.00016986,2]
[390577100,1760091047914,-500.0,0.00016986,2]
[390577102,1760091047923,-500.0,0.00016986,2]
[390577104,1760091047932,-500.0,0.00016986,2]
[390577106,1760091047941,-500.0,0.00016986,2]
[390577108,1760091047950,-5705.2,0.00016986,2]
[390577110,1760091047959,-500.0,0.00016986,2]
[390577112,1760091047968,-898.84,0.00016986,2]
[390577114,1760091047978,-5035.78,0.00016986,2]
[390577116,1760091047987,-501.73212734,0.00016986,2]
[390577117,1760091047996,-1783.34,0.00016986,2]
[390577119,1760091048005,-588.36,0.00016986,2]
[390577121,1760091048014,-754.27,0.00016986,2]
[390577123,1760091048023,-500.0,0.00016986,2]
[390577125,1760091048033,-2521.53,0.00016986,2]
[390577127,1760091048043,-2043.03,0.00016986,2]
[390577129,1760091048052,-500.0,0.00016986,2]
[390577131,1760091048062,-645.78,0.00016986,2]
[390577133,1760091048070,-500.0,0.00016986,2]
[390577135,1760091048079,-500.0,0.00016986,2]
[390577137,1760091048088,-500.0,0.00016986,2]
[390577139,1760091048097,-500.0,0.00016986,2]
[390577141,1760091048106,-335.48160139,0.00016986,2]
[390577143,1760091048115,-500.0,0.00016986,2]
[390577145,1760091048124,-500.0,0.00016986,2]
[390577147,1760091048132,-500.0,0.00016986,2]
[390577149,1760091048141,-500.0,0.00016986,2]
[390577151,1760091048150,-720.45,0.00016986,2]
[390577153,1760091048159,-564.34,0.00016986,2]
[390577155,1760091048168,-500.0,0.00016986,2]
[390577157,1760091048176,-500.0,0.00016986,2]
[390577159,1760091048185,-1232.67,0.00016986,2]
[390577161,1760091048194,-3366.4,0.00016986,2]
[390577163,1760091048203,-277.914755,0.00016986,2]
[390577164,1760091048211,-1064.85,0.00016986,2]
[390577166,1760091048220,-277.914755,0.00016986,2]
[390577168,1760091048230,-753.1,0.00016986,2]
[390577171,1760091048242,-277.914755,0.00016986,2]
[390577172,1760091048251,-500.0,0.00016986,2]
[390577174,1760091048260,-277.914752,0.00016986,2]
[390577176,1760091048269,-577.27,0.00016986,2]
[390577194,1760091048440,-500.0,0.00016986,2]
[390577196,1760091048450,-500.0,0.00016986,2]
[390577198,1760091048458,-500.0,0.00016986,2]
[390577200,1760091048468,-151.0,0.00016986,2]
[390577202,1760091048477,-514.29,0.00016986,2]
[390577204,1760091048486,-500.0,0.00016986,2]
[390577206,1760091048496,-500.0,0.00016986,2]
[390577207,1760091048505,-1154.2,0.00016986,2]
[390577209,1760091048515,-749.88,0.00016986,2]
[390577211,1760091048524,-500.0,0.00016986,2]
[390577213,1760091048533,-500.0,0.00016986,2]
[390577215,1760091048542,-444.47636694,0.00016986,2]
[390577217,1760091048551,-500.0,0.00016986,2]
[390577219,1760091048561,-500.0,0.00016986,2]
[390577221,1760091048571,-3307.06,0.00016986,2]
[390577223,1760091048581,-320.003172,0.00016986,2]
[390577225,1760091048590,-320.003172,0.00016986,2]
[390577227,1760091048599,-500.0,0.00016986,2]
[390577229,1760091048608,-969.0,0.00016986,2]
[390577231,1760091048618,-320.003172,0.00016986,2]
[390577233,1760091048627,-500.0,0.00016986,2]
[390577235,1760091048637,-320.003182,0.00016986,2]
[390577237,1760091048647,-801.85,0.00016986,2]
[390577239,1760091048655,-500.0,0.00016986,2]
[390577241,1760091048664,-799.88,0.00016986,2]
[390577243,1760091048673,-500.0,0.00016986,2]
[390577245,1760091048683,-500.0,0.00016986,2]
[390577247,1760091048692,-500.0,0.00016986,2]
[390577249,1760091048701,-2219.37,0.00016986,2]
[390577251,1760091048710,-500.0,0.00016986,2]
[390577253,1760091048720,-1607.42,0.00016986,2]
[390577255,1760091048729,-999.81,0.00016986,2]
[390577257,1760091048738,-500.0,0.00016986,2]
[390577259,1760091048747,-500.0,0.00016986,2]
[390577261,1760091048755,-500.0,0.00016986,2]
[390577262,1760091048765,-500.0,0.00016986,2]
[390577264,1760091048774,-759.79,0.00016986,2]
[390577266,1760091048783,-549.04,0.00016986,2]
[390577268,1760091048792,-562.58,0.00016986,2]
[390577270,1760091048801,-808.54,0.00016986,2]
[390577272,1760091048811,-500.0,0.00016986,2]
[390577274,1760091048820,-644.03,0.00016986,2]
[390577276,1760091048831,-500.0,0.00016986,2]
[390577278,1760091048842,-4437.97,0.00016986,2]
[390577280,1760091048852,-500.0,0.00016986,2]
[390577282,1760091048864,-1049.26,0.00016986,2]
[390577284,1760091048874,-500.0,0.00016986,2]
[390577286,1760091048884,-500.0,0.00016986,2]
[390577288,1760091048893,-151.0,0.00016986,2]
[390577290,1760091048902,-151.0,0.00016986,2]
[390577292,1760091048912,-232.335434,0.00016986,2]
[390577294,1760091048921,-839.44,0.00016986,2]
[390577296,1760091048930,-500.0,0.00016986,2]
[390577298,1760091048939,-500.0,0.00016986,2]
[390577299,1760091048948,-151.0,0.00016986,2]
[390577300,1760091048957,-558.33584638,0.00016986,2]
[390577301,1760091048967,-614.65051172,0.00016986,2]
[390577302,1760091048976,-151.0,0.00016986,2]
[390577303,1760091048985,-387.365418,0.00016986,2]
[390577304,1760091048994,-507.69,0.00016986,2]
[390577305,1760091049003,-500.0,0.00016986,2]
[390577306,1760091049012,-387.365418,0.00016986,2]
[390577307,1760091049021,-1797.77,0.00016986,2]
[390577308,1760091049031,-387.365418,0.00016986,2]
[390577309,1760091049040,-851.5,0.00016986,2]
[390577310,1760091049050,-387.365417,0.00016986,2]
[390577311,1760091049060,-1909.43,0.00016986,2]
[390577312,1760091049069,-531.47,0.00016986,2]
[390577314,1760091049080,-500.0,0.00016986,2]
[390577316,1760091049089,-151.0,0.00016986,2]
[390577318,1760091049098,-548.33,0.00016986,2]
[390577320,1760091049108,-500.0,0.00016986,2]
[390577322,1760091049119,-500.0,0.00016986,2]
[390577324,1760091049128,-500.0,0.00016986,2]
[390577326,1760091049137,-500.0,0.00016986,2]
[390577328,1760091049146,-595.1,0.00016986,2]
[390577330,1760091049154,-545.94,0.00016986,2]
[390577332,1760091049163,-500.0,0.00016986,2]
[390577334,1760091049174,-1448.95,0.00016986,2]
[390577336,1760091049185,-151.0,0.00016986,2]
[390577338,1760091049194,-151.0,0.00016986,2]
[390577340,1760091049204,-500.0,0.00016986,2]
[390577342,1760091049213,-151.0,0.00016986,2]
[390577344,1760091049222,-1741.21,0.00016986,2]
[390577346,1760091049231,-500.0,0.00016986,2]
[390577348,1760091049245,-499.17671403,0.00016986,2]
[390577350,1760091049254,-938.91,0.00016986,2]
[390577352,1760091049263,-500.0,0.00016986,2]
[390577354,1760091049272,-1729.47,0.00016986,2]
[390577356,1760091049282,-212.949088,0.00016986,2]
[390577358,1760091049291,-212.949088,0.00016986,2]
[390577360,1760091049300,-212.949088,0.00016986,2]
[390577362,1760091049309,-500.0,0.00016986,2]
[390577364,1760091049319,-818.03,0.00016986,2]
[390577366,1760091049329,-212.949093,0.00016986,2]
[390577368,1760091049339,-500.0,0.00016986,2]
[390577370,1760091049348,-500.0,0.00016986,2]
[390577372,1760091049357,-2694.32501687,0.00016991,2]
[390577374,1760091049368,-182.4453338,0.00017,2]
[390577376,1760091049378,-7000.0,0.00017,3]
[390577378,1760091049388,-151.0,0.00017,2]
[390577380,1760091049397,-882.0,0.00017041,2]
[390577382,1760091049406,-882.0,0.00017096,2]
[390577384,1760091049415,-151.0,0.000171,2]
[390577386,1760091049424,-505.45386967,0.00017116,2]
[390577388,1760091049434,-227.0,0.00017117,2]
[390577390,1760091049443,-18110.15103262,0.00017118,2]
[390577392,1760091049453,-501.05544168,0.00017129,2]
[390577394,1760091049462,-500.0,0.00017129,2]
[390577396,1760091049471,-500.0,0.00017129,2]
[390577398,1760091049480,-500.0,0.00017129,2]
[390577400,1760091049489,-500.0,0.00017129,2]
[390577402,1760091049498,-214.21809975,0.00017129,2]
[390577404,1760091049507,-500.0,0.00017129,2]
[390577406,1760091049517,-627.54677909,0.00017129,2]
[390577408,1760091049526,-500.0,0.00017129,2]
[390577410,1760091049535,-882.0,0.0001715,2]
[390577412,1760091049544,-957.55260887,0.0001716,2]
[390577414,1760091049554,-3928.4449145,0.00017183,2]
[390577416,1760091049564,-168.10077245,0.00017191,2]
[390577418,1760091049573,-227.0,0.00017194,2]
[390577420,1760091049582,-227.0,0.00017198,2]
[390577422,1760091049591,-182.4453338,0.000172,2]
[390577424,1760091049600,-2000.0,0.000172,2]
[390577426,1760091049610,-151.0,0.000172,2]
[390577428,1760091049619,-151.0,0.000172,2]
[390577430,1760091049628,-882.0,0.00017205,2]
[390577432,1760091049637,-498.0,0.00017247,2]
[390577434,1760091049646,-882.0,0.0001726,2]
[390577436,1760091049655,-500.0,0.0001726,2]
[390577438,1760091049664,-500.0,0.0001726,2]
[390577440,1760091049673,-500.0,0.0001726,2]
[390577442,1760091049683,-500.0,0.0001726,2]
[390577444,1760091049693,-700.31,0.0001726,2]
[390577446,1760091049702,-414.37445842,0.0001726,2]
[390577448,1760091049712,-500.0,0.0001726,2]
[390577450,1760091049722,-500.0,0.0001726,2]
[390577452,1760091049731,-500.0,0.0001726,2]
[390577454,1760091049740,-500.0,0.0001726,2]
[390577456,1760091049750,-563.66,0.0001726,2]
[390577458,1760091049759,-540.17,0.0001726,2]
[390577460,1760091049769,-500.0,0.0001726,2]
[390577462,1760091049778,-500.0,0.0001726,2]
[390577465,1760091049787,-803.31,0.0001726,2]
[390577466,1760091049797,-300.0,0.0001726,2]
[390577468,1760091049806,-500.0,0.0001726,2]
[390577470,1760091049814,-500.0,0.0001726,2]
[390577472,1760091049823,-500.0,0.0001726,2]
[390577474,1760091049832,-261.74,0.0001726,2]
[390577476,1760091049842,-500.0,0.0001726,2]
[390577478,1760091049851,-500.0,0.0001726,2]
[390577480,1760091049860,-611.98,0.0001726,2]
[390577482,1760091049869,-500.0,0.0001726,2]
[390577485,1760091049879,-500.0,0.0001726,2]
[390577487,1760091049889,-500.0,0.0001726,2]
[390577489,1760091049899,-500.0,0.0001726,2]
[390577491,1760091049907,-500.0,0.0001726,2]
[390577493,1760091049916,-500.0,0.0001726,2]
[390577495,1760091049926,-500.0,0.0001726,2]
[390577497,1760091049935,-942.37,0.0001726,2]
[390577499,1760091049944,-500.0,0.0001726,2]
[390577501,1760091049953,-500.0,0.0001726,2]
[390577503,1760091049962,-500.0,0.0001726,2]
[390577505,1760091049971,-1003.68,0.0001726,2]
[390577507,1760091049980,-500.0,0.0001726,2]
[390577509,1760091049990,-544.47115347,0.0001726,2]
[390577511,1760091049999,-500.0,0.0001726,2]
[390577513,1760091050009,-579.05,0.0001726,2]
[390577515,1760091050018,-500.0,0.0001726,2]
[390577517,1760091050028,-500.0,0.0001726,2]
[390577519,1760091050037,-500.0,0.0001726,2]
[390577521,1760091050046,-436.6726988,0.0001726,2]
[390577523,1760091050055,-161.80879077,0.0001726,2]
[390577525,1760091050065,-500.0,0.0001726,2]
[390577527,1760091050074,-446.2391071,0.0001726,2]
[390577529,1760091050084,-500.0,0.0001726,2]
[390577531,1760091050094,-500.0,0.0001726,2]
[390577533,1760091050103,-375.88192312,0.0001726,2]
[390577535,1760091050112,-905.33,0.0001726,2]
[390577537,1760091050121,-805.24,0.0001726,2]
[390577539,1760091050130,-500.0,0.0001726,2]
[390577541,1760091050139,-425.27542996,0.0001726,2]
[390577543,1760091050148,-500.0,0.0001726,2]
[390577545,1760091050157,-500.0,0.0001726,2]
[390577547,1760091050166,-500.0,0.0001726,2]
[390577549,1760091050175,-500.0,0.0001726,2]
[390577551,1760091050184,-500.0,0.0001726,2]
[390577553,1760091050193,-500.0,0.0001726,2]
[390577555,1760091050202,-1328.9,0.0001726,2]
[390577557,1760091050212,-500.0,0.0001726,2]
[390577559,1760091050220,-500.0,0.0001726,2]
[390577561,1760091050229,-937.71,0.0001726,2]
[390577562,1760091050238,-500.0,0.0001726,2]
[390577564,1760091050251,-216.52909316,0.0001726,2]
[390577566,1760091050260,-500.0,0.0001726,2]
[390577568,1760091050272,-500.0,0.0001726,2]
[390577570,1760091050282,-503.42340441,0.0001726,2]
[390577572,1760091050292,-500.0,0.0001726,2]
[390577574,1760091050302,-500.0,0.0001726,2]
[390577576,1760091050311,-1749.37,0.0001726,2]
[390577578,1760091050323,-500.0,0.0001726,2]
[390577580,1760091050333,-500.0,0.0001726,2]
[390577582,1760091050342,-500.0,0.0001726,2]
[390577584,1760091050351,-887.19,0.0001726,2]
[390577586,1760091050360,-505.55621877,0.0001726,2]
[390577588,1760091050369,-500.0,0.0001726,2]
[390577590,1760091050379,-1245.37,0.0001726,2]
[390577592,1760091050388,-500.0,0.0001726,2]
[390577594,1760091050396,-3050.89,0.0001726,2]
[390577596,1760091050405,-1194.96,0.0001726,2]
[390577598,1760091050415,-510.83,0.0001726,2]
[390577600,1760091050424,-500.0,0.0001726,2]
[390577602,1760091050435,-5982.98,0.0001726,2]
[390577604,1760091050445,-681.35,0.0001726,2]
[390577606,1760091050453,-500.0,0.0001726,2]
[390577608,1760091050462,-198.47974526,0.0001726,2]
[390577610,1760091050471,-500.0,0.0001726,2]
[390577612,1760091050480,-500.0,0.0001726,2]
[390577614,1760091050489,-596.13888638,0.0001726,2]
[390577616,1760091050498,-500.0,0.0001726,2]
[390577618,1760091050507,-500.0,0.0001726,2]
[390577620,1760091050516,-500.0,0.0001726,2]
[390577622,1760091050525,-5705.2,0.0001726,2]
[390577624,1760091050536,-641.40000001,0.0001726,2]
[390577626,1760091050549,-898.84,0.0001726,2]
[390577628,1760091050558,-5035.78,0.0001726,2]
[390577630,1760091050568,-1783.34,0.0001726,2]
[390577632,1760091050578,-754.27,0.0001726,2]
[390577634,1760091050587,-472.46020789,0.0001726,2]
[390577636,1760091050596,-2521.53,0.0001726,2]
[390577638,1760091050604,-2043.03,0.0001726,2]
[390577640,1760091050613,-500.0,0.0001726,2]
[390577642,1760091050622,-645.78,0.0001726,2]
[390577644,1760091050631,-500.0,0.0001726,2]
[390577646,1760091050640,-500.0,0.0001726,2]
[390577648,1760091050650,-500.0,0.0001726,2]
[390577650,1760091050658,-327.47162768,0.0001726,2]
[390577652,1760091050667,-500.0,0.0001726,2]
[390577654,1760091050676,-500.0,0.0001726,2]
[390577656,1760091050685,-500.0,0.0001726,2]
[390577658,1760091050694,-720.45,0.0001726,2]
[390577660,1760091050702,-564.34,0.0001726,2]
[390577662,1760091050711,-500.0,0.0001726,2]
[390577664,1760091050720,-500.0,0.0001726,2]
[390577666,1760091050729,-1232.67,0.0001726,2]
[390577668,1760091050738,-3366.4,0.0001726,2]
[390577670,1760091050747,-1064.85,0.0001726,2]
[390577672,1760091050756,-753.1,0.0001726,2]
[390577674,1760091050765,-500.0,0.0001726,2]
[390577676,1760091050774,-577.27,0.0001726,2]
[390577677,1760091050783,-500.0,0.0001726,2]
[390577679,1760091050792,-514.29,0.0001726,2]
[390577681,1760091050801,-500.0,0.0001726,2]
[390577683,1760091050811,-500.0,0.0001726,2]
[390577685,1760091050820,-1154.2,0.0001726,2]
[390577687,1760091050830,-749.88,0.0001726,2]
[390577689,1760091050839,-500.0,0.0001726,2]
[390577691,1760091050848,-545.47937832,0.0001726,2]
[390577693,1760091050857,-286.06710445,0.0001726,2]
[390577695,1760091050866,-500.0,0.0001726,2]
[390577697,1760091050875,-3307.06,0.0001726,2]
[390577699,1760091050885,-389.95574784,0.0001726,2]
[390577701,1760091050894,-969.0,0.0001726,2]
[390577703,1760091050903,-801.85,0.0001726,2]
[390577705,1760091050912,-500.0,0.0001726,2]
[390577707,1760091050921,-799.88,0.0001726,2]
[390577709,1760091050930,-500.0,0.0001726,2]
[390577711,1760091050939,-500.0,0.0001726,2]
[390577713,1760091050948,-500.0,0.0001726,2]
[390577715,1760091050957,-2219.37,0.0001726,2]
[390577717,1760091050966,-534.40182999,0.0001726,2]
[390577719,1760091050975,-1607.42,0.0001726,2]
[390577721,1760091050983,-999.81,0.0001726,2]
[390577723,1760091050992,-500.0,0.0001726,2]
[390577725,1760091051002,-500.0,0.0001726,2]
[390577727,1760091051011,-504.74424792,0.0001726,2]
[390577729,1760091051020,-500.0,0.0001726,2]
[390577731,1760091051029,-759.79,0.0001726,2]
[390577733,1760091051039,-549.04,0.0001726,2]
[390577735,1760091051048,-562.58,0.0001726,2]
[390577737,1760091051057,-808.54,0.0001726,2]
[390577739,1760091051066,-500.0,0.0001726,2]
[390577741,1760091051075,-644.03,0.0001726,2]
[390577743,1760091051083,-500.0,0.0001726,2]
[390577745,1760091051093,-4437.97,0.0001726,2]
[390577747,1760091051102,-500.0,0.0001726,2]
[390577749,1760091051111,-1049.26,0.0001726,2]
[390577751,1760091051120,-500.0,0.0001726,2]
[390577753,1760091051129,-238.15149743,0.0001726,2]
[390577755,1760091051138,-839.44,0.0001726,2]
[390577757,1760091051147,-500.0,0.0001726,2]
[390577759,1760091051156,-507.69,0.0001726,2]
[390577761,1760091051164,-553.4796337,0.0001726,2]
[390577763,1760091051174,-1797.77,0.0001726,2]
[390577765,1760091051182,-1909.43,0.0001726,2]
[390577767,1760091051191,-531.47,0.0001726,2]
[390577769,1760091051200,-532.55845623,0.0001726,2]
[390577771,1760091051210,-851.5,0.0001726,2]
[390577773,1760091051219,-548.33,0.0001726,2]
[390577775,1760091051230,-500.0,0.0001726,2]
[390577777,1760091051239,-500.0,0.0001726,2]
[390577779,1760091051252,-500.0,0.0001726,2]
[390577781,1760091051261,-500.0,0.0001726,2]
[390577783,1760091051270,-595.1,0.0001726,2]
[390577785,1760091051279,-545.94,0.0001726,2]
[390577787,1760091051288,-520.46262448,0.0001726,2]
[390577789,1760091051297,-1448.95,0.0001726,2]
[390577791,1760091051306,-500.0,0.0001726,2]
[390577793,1760091051315,-1741.21,0.0001726,2]
[390577795,1760091051326,-500.0,0.0001726,2]
[390577797,1760091051335,-938.91,0.0001726,2]
[390577799,1760091051344,-500.0,0.0001726,2]
[390577815,1760091051485,-1729.47,0.0001726,2]
[390577817,1760091051500,-500.0,0.0001726,2]
[390577819,1760091051510,-818.03,0.0001726,2]
[390577821,1760091051519,-500.0,0.0001726,2]
[390577823,1760091051529,-500.53836085,0.00017288,2]
[390577825,1760091051538,-500.0,0.00017288,2]
[390577827,1760091051547,-500.0,0.00017288,2]
[390577829,1760091051556,-500.0,0.00017288,2]
[390577831,1760091051565,-372.10225396,0.00017288,2]
[390577833,1760091051574,-500.0,0.00017288,2]
[390577835,1760091051583,-500.0,0.00017288,2]
[390577838,1760091051593,-161.86847584,0.00017288,2]
[390577840,1760091051602,-500.0,0.00017288,2]
[390577842,1760091051611,-500.0,0.00017288,2]
[390577844,1760091051620,-500.0,0.00017288,2]
[390577846,1760091051629,-500.0,0.00017288,2]
[390577848,1760091051637,-500.0,0.00017288,2]
[390577850,1760091051646,-500.0,0.00017288,2]
[390577852,1760091051655,-500.0,0.00017288,2]
[390577854,1760091051663,-500.0,0.00017288,2]
[390577856,1760091051672,-500.86991837,0.00017288,2]
[390577857,1760091051681,-500.0,0.00017288,2]
[390577859,1760091051690,-500.0,0.00017288,2]
[390577861,1760091051700,-500.0,0.00017288,2]
[390577863,1760091051709,-500.0,0.00017288,2]
[390577866,1760091051720,-500.0,0.00017288,2]
[390577868,1760091051729,-500.0,0.00017288,2]
[390577870,1760091051738,-500.0,0.00017288,2]
[390577872,1760091051747,-157.30324439,0.00017288,2]
[390577874,1760091051757,-500.95947091,0.00017288,2]
[390577876,1760091051766,-500.0,0.00017288,2]
[390577878,1760091051775,-980.0,0.00017293,2]
[390577880,1760091051783,-182.4453338,0.000173,2]
[390577882,1760091051793,-882.0,0.00017315,2]
[390577884,1760091051802,-630.0,0.00017326,2]
[390577885,1760091051812,-2159.0,0.00017326,2]
[390577888,1760091051822,-227.0,0.00017352,2]
[390577890,1760091051832,-601.56279864,0.00017359,2]
[390577892,1760091051842,-227.0,0.0001736,2]
[390577894,1760091051851,-4195.0,0.00017367,2]
[390577896,1760091051861,-882.0,0.0001737,2]
[390577898,1760091051870,-227.0,0.00017388,2]
[390577899,1760091051879,-453.05675945,0.000174,2]
[390577901,1760091051888,-882.0,0.00017424,2]
[390577903,1760091051897,-595.5495834,0.00017448,2]
[390577905,1760091051906,-882.0,0.00017479,2]
[390577907,1760091051916,-420.0,0.00017482,2]
[390577909,1760091051925,-150.0,0.00017494,2]
[390577911,1760091051934,-150.0,0.00017494,2]
[390577913,1760091051945,-150.0,0.00017494,2]
[390577915,1760091051955,-150.0,0.00017494,2]
[390577917,1760091051964,-182.4453338,0.000175,2]
[390577919,1760091051973,-414.69274661,0.000175,2]
[390577921,1760091051982,-413.60686754,0.00017521,2]
[390577923,1760091051992,-186.74785753,0.00017533,2]
[390577925,1760091052001,-200.0,0.00017533,2]
[390577927,1760091052011,-882.0,0.00017534,2]
[390577929,1760091052019,-500.0,0.00017534,2]
[390577931,1760091052028,-510.29743066,0.00017534,2]
[390577933,1760091052040,-500.0,0.00017534,2]
[390577935,1760091052049,-500.0,0.00017534,2]
[390577937,1760091052059,-700.31,0.00017534,2]
[390577939,1760091052067,-500.0,0.00017534,2]
[390577941,1760091052077,-500.0,0.00017534,2]
[390577943,1760091052086,-500.0,0.00017534,2]
[390577945,1760091052095,-500.0,0.00017534,2]
[390577947,1760091052104,-563.66,0.00017534,2]
[390577948,1760091052113,-540.17,0.00017534,2]
[390577950,1760091052122,-500.0,0.00017534,2]
[390577952,1760091052131,-500.0,0.00017534,2]
[390577954,1760091052139,-803.31,0.00017534,2]
[390577956,1760091052148,-300.0,0.00017534,2]
[390577958,1760091052157,-500.0,0.00017534,2]